[Event "Live Chess"]
[Site "Chess.com"]
[Date "2024.06.02"]
[Round "-"]
[White "Ferrarifan27"]
[Black "slava_ukr"]
[Result "0-1"]
[WhiteElo "2138"]
[BlackElo "2335"]
[TimeControl "300"]
[EndTime "6:17:37 PDT"]
[Termination "slava_ukr won by resignation"]

1. e4 {[%clk 0:04:58.9]} 1... d5 {[%clk 0:04:59.3]} 2. exd5 {[%clk 0:04:56.9]}
2... Qxd5 {[%clk 0:04:58.7]} 3. Nc3 {[%clk 0:04:45.1]} 3... Qd6 {[%clk
0:04:57.9]} 4. d4 {[%clk 0:04:42.8]} 4... c6 {[%clk 0:04:57.3]} 5. Nf3 {[%clk
0:04:40.6]} 5... Nf6 {[%clk 0:04:56.9]} 6. Bg5 {[%clk 0:04:36.9]} 6... Bf5
{[%clk 0:04:55.7]} 7. Bd3 {[%clk 0:04:32.4]} 7... Bxd3 {[%clk 0:04:54.5]} 8.
Qxd3 {[%clk 0:04:31.2]} 8... e6 {[%clk 0:04:54.2]} 9. Bxf6 {[%clk 0:04:27.8]}
9... gxf6 {[%clk 0:04:53.3]} 10. O-O-O {[%clk 0:04:26.3]} 10... Nd7 {[%clk
0:04:52.6]} 11. Rhe1 {[%clk 0:04:22.8]} 11... O-O-O {[%clk 0:04:51.5]} 12. Kb1
{[%clk 0:04:14.7]} 12... Rg8 {[%clk 0:04:50.4]} 13. g3 {[%clk 0:04:12.1]} 13...
f5 {[%clk 0:04:49.5]} 14. Qc4 {[%clk 0:04:08]} 14... Qb4 {[%clk 0:04:40.1]} 15.
Qxb4 {[%clk 0:03:59.5]} 15... Bxb4 {[%clk 0:04:39.3]} 16. Re3 {[%clk 0:03:58.8]}
16... Nf6 {[%clk 0:04:30.5]} 17. Ne5 {[%clk 0:03:45.2]} 17... Rgf8 {[%clk
0:04:25.2]} 18. a3 {[%clk 0:03:42.4]} 18... Bd6 {[%clk 0:04:20.1]} 19. Nc4
{[%clk 0:03:39.7]} 19... Nd5 {[%clk 0:04:17.5]} 20. Nxd6+ {[%clk 0:03:36.1]}
20... Rxd6 {[%clk 0:04:16.7]} 21. Nxd5 {[%clk 0:03:35]} 21... Rxd5 {[%clk
0:04:14.9]} 22. Red3 {[%clk 0:03:33.3]} 22... Rg8 {[%clk 0:04:07.1]} 23. f4
{[%clk 0:03:31.7]} 23... h5 {[%clk 0:04:05.3]} 24. c4 {[%clk 0:03:27.7]} 24...
Rd7 {[%clk 0:04:04]} 25. d5 {[%clk 0:03:26.7]} 25... cxd5 {[%clk 0:04:01.4]} 26.
cxd5 {[%clk 0:03:25.5]} 26... Rgd8 {[%clk 0:03:57.9]} 27. d6 {[%clk 0:03:07.8]}
27... b6 {[%clk 0:03:57]} 28. Kc2 {[%clk 0:03:03.1]} 28... Kb7 {[%clk
0:03:56.1]} 29. Kb3 {[%clk 0:03:01.9]} 29... Rc8 {[%clk 0:03:53.1]} 30. a4
{[%clk 0:02:54.2]} 30... a5 {[%clk 0:03:47.8]} 31. R3d2 {[%clk 0:02:45.4]} 31...
Rc5 {[%clk 0:03:45.8]} 32. Rd4 {[%clk 0:02:35.4]} 32... Kc6 {[%clk 0:03:44.7]}
33. R1d2 {[%clk 0:02:31.1]} 33... Rd5 {[%clk 0:03:43.5]} 34. Rc4+ {[%clk
0:02:29.9]} 34... Kxd6 {[%clk 0:03:42.3]} 35. Rdc2 {[%clk 0:02:27.1]} 35... Rc5
{[%clk 0:03:37.2]} 36. Rd2+ {[%clk 0:02:25.7]} 36... Kc6 {[%clk 0:03:36.1]} 37.
Rxd7 {[%clk 0:02:20.1]} 37... Kxd7 {[%clk 0:03:35.2]} 38. Rxc5 {[%clk
0:02:18.9]} 38... bxc5 {[%clk 0:03:34.1]} 39. Kc4 {[%clk 0:02:17.9]} 39... Kc6
{[%clk 0:03:33.2]} 40. b3 {[%clk 0:02:15.6]} 40... f6 {[%clk 0:03:32.1]} 41. Kd3
{[%clk 0:02:11]} 41... Kd5 {[%clk 0:03:30.2]} 42. h3 {[%clk 0:02:06.7]} 42... e5
{[%clk 0:03:27.2]} 43. h4 {[%clk 0:02:02.6]} 43... e4+ {[%clk 0:03:12.1]} 44.
Kc3 {[%clk 0:02:01.1]} 44... c4 {[%clk 0:03:00.7]} 45. bxc4+ {[%clk 0:01:54]}
45... Kc5 {[%clk 0:02:59.6]} 46. Kb3 {[%clk 0:01:49.3]} 46... Kd4 {[%clk
0:02:57.2]} 47. c5 {[%clk 0:01:47.9]} 47... Kxc5 {[%clk 0:02:56.2]} 48. Kc3
{[%clk 0:01:47]} 48... Kd5 {[%clk 0:02:55.3]} 49. Kc2 {[%clk 0:01:44.2]} 49...
Kc4 {[%clk 0:02:54.4]} 50. Kd2 {[%clk 0:01:43.4]} 50... Kb4 {[%clk 0:02:53.7]}
0-1

[Event "Live Chess"]
[Site "Chess.com"]
[Date "2024.06.02"]
[Round "-"]
[White "f4nomore"]
[Black "bobby_jamesFischer86"]
[Result "0-1"]
[WhiteElo "1280"]
[BlackElo "1649"]
[TimeControl "300"]
[EndTime "6:17:37 PDT"]
[Termination "bobby_jamesFischer86 won by resignation"]

1. b3 {[%clk 0:04:54.7]} 1... d5 {[%clk 0:04:45.2]} 2. Bb2 {[%clk 0:04:53.5]}
2... c5 {[%clk 0:04:42.6]} 3. e3 {[%clk 0:04:52.6]} 3... Nc6 {[%clk 0:04:39.9]}
4. Nf3 {[%clk 0:04:51.5]} 4... Nf6 {[%clk 0:04:37.9]} 5. Be2 {[%clk 0:04:50.3]}
5... Qc7 {[%clk 0:04:34.1]} 6. Bxf6 {[%clk 0:04:46.2]} 6... exf6 {[%clk
0:04:32.3]} 7. O-O {[%clk 0:04:44.5]} 7... Bd6 {[%clk 0:04:31]} 8. g3 {[%clk
0:04:38.6]} 8... Bh3 {[%clk 0:04:28.3]} 9. Re1 {[%clk 0:04:36.8]} 9... O-O
{[%clk 0:04:27.9]} 10. d4 {[%clk 0:04:33]} 10... cxd4 {[%clk 0:04:27]} 11. Nxd4
{[%clk 0:04:30.4]} 11... Nxd4 {[%clk 0:04:25.9]} 12. exd4 {[%clk 0:04:28.8]}
12... Rfe8 {[%clk 0:04:22.2]} 13. Nd2 {[%clk 0:04:26.4]} 13... Rad8 {[%clk
0:04:18.5]} 14. Nf3 {[%clk 0:04:23.5]} 14... Bb4 {[%clk 0:04:16.3]} 15. Nd2
{[%clk 0:04:13.9]} 15... Qa5 {[%clk 0:04:14.7]} 16. Bf1 {[%clk 0:03:51.5]} 16...
Bxd2 {[%clk 0:04:09.9]} 17. Rxe8+ {[%clk 0:03:48.5]} 17... Rxe8 {[%clk
0:04:02.6]} 18. Qf3 {[%clk 0:03:38.5]} 18... Bxf1 {[%clk 0:03:55.2]} 19. Kxf1
{[%clk 0:03:36.6]} 19... Qc3 {[%clk 0:03:42.8]} 20. Qxc3 {[%clk 0:03:32.9]}
20... Bxc3 {[%clk 0:03:41.5]} 21. Rb1 {[%clk 0:03:31.5]} 21... b5 {[%clk
0:03:36]} 22. Rd1 {[%clk 0:03:28.9]} 22... b4 {[%clk 0:03:33.6]} 23. Kg2 {[%clk
0:03:26.9]} 23... Re2 {[%clk 0:03:27.3]} 24. Rd3 {[%clk 0:03:18]} 24... Rxc2
{[%clk 0:03:24.7]} 25. Re3 {[%clk 0:03:15.8]} 25... Kf8 {[%clk 0:03:19.5]} 26.
Kh3 {[%clk 0:03:08.5]} 26... Bxd4 {[%clk 0:03:17.8]} 27. Rd3 {[%clk 0:03:04.5]}
27... Bxf2 {[%clk 0:03:15.4]} 28. Rxd5 {[%clk 0:03:02.4]} 28... Bg1 {[%clk
0:03:10.5]} 29. Rd8+ {[%clk 0:02:59]} 29... Ke7 {[%clk 0:03:09.4]} 30. Ra8
{[%clk 0:02:52.4]} 30... h5 {[%clk 0:03:07.4]} 31. g4 {[%clk 0:02:48.5]} 31...
Rxh2+ {[%clk 0:02:59.7]} 32. Kg3 {[%clk 0:02:46]} 32... h4+ {[%clk 0:02:58.2]}
33. Kf4 {[%clk 0:02:42.1]} 33... g5+ {[%clk 0:02:56.5]} 34. Ke4 {[%clk
0:02:37.5]} 34... Rxa2 {[%clk 0:02:44.7]} 35. Rb8 {[%clk 0:02:30.6]} 35... h3
{[%clk 0:02:39.8]} 36. Rb7+ {[%clk 0:02:28.8]} 36... Kf8 {[%clk 0:02:38.7]} 37.
Rb8+ {[%clk 0:02:26.8]} 37... Kg7 {[%clk 0:02:37.7]} 38. Rxb4 {[%clk 0:02:18.7]}
38... h2 {[%clk 0:02:34.2]} 0-1

[Event "Live Chess"]
[Site "Chess.com"]
[Date "2024.06.02"]
[Round "-"]
[White "Tatarinov_Maxim"]
[Black "GMMickeyAdams"]
[Result "0-1"]
[WhiteElo "2283"]
[BlackElo "2801"]
[TimeControl "300"]
[EndTime "6:17:50 PDT"]
[Termination "GMMickeyAdams won by resignation"]

1. Nf3 {[%clk 0:04:56.9]} 1... d5 {[%clk 0:04:58.4]} 2. g3 {[%clk 0:04:50.1]}
2... Bg4 {[%clk 0:04:56.5]} 3. Bg2 {[%clk 0:04:48.7]} 3... c6 {[%clk 0:04:55.4]}
4. c4 {[%clk 0:04:43.1]} 4... e6 {[%clk 0:04:53.5]} 5. cxd5 {[%clk 0:04:41.9]}
5... Bxf3 {[%clk 0:04:52.1]} 6. Bxf3 {[%clk 0:04:40.6]} 6... cxd5 {[%clk
0:04:51.7]} 7. O-O {[%clk 0:04:39.8]} 7... Nc6 {[%clk 0:04:50.3]} 8. d3 {[%clk
0:04:38.9]} 8... Nf6 {[%clk 0:04:47.6]} 9. Bg2 {[%clk 0:04:38.2]} 9... Be7
{[%clk 0:04:46.6]} 10. Qb3 {[%clk 0:04:35.5]} 10... Qd7 {[%clk 0:04:41]} 11. Nc3
{[%clk 0:04:28.1]} 11... O-O {[%clk 0:04:39]} 12. Bf4 {[%clk 0:04:22.7]} 12...
Nd4 {[%clk 0:04:33.7]} 13. Qd1 {[%clk 0:04:20.8]} 13... Rfc8 {[%clk 0:04:33.2]}
14. Be3 {[%clk 0:04:15.2]} 14... Nc6 {[%clk 0:04:29.9]} 15. Qa4 {[%clk
0:04:11.3]} 15... a6 {[%clk 0:04:25]} 16. Bd2 {[%clk 0:04:01]} 16... b5 {[%clk
0:04:23.2]} 17. Qd1 {[%clk 0:03:56.3]} 17... h6 {[%clk 0:04:16.9]} 18. Rc1
{[%clk 0:03:53.9]} 18... Rc7 {[%clk 0:04:10.2]} 19. a3 {[%clk 0:03:09.7]} 19...
Rac8 {[%clk 0:04:08.3]} 20. Na2 {[%clk 0:03:07.7]} 20... a5 {[%clk 0:04:03.6]}
21. Nc3 {[%clk 0:03:04.8]} 21... Rb8 {[%clk 0:03:51.7]} 22. a4 {[%clk
0:03:00.6]} 22... bxa4 {[%clk 0:03:49.3]} 23. Nxa4 {[%clk 0:02:53.4]} 23... Bd6
{[%clk 0:03:39.5]} 24. Be3 {[%clk 0:02:35.6]} 24... Rb4 {[%clk 0:03:22.9]} 25.
Bc5 {[%clk 0:02:20.3]} 25... Rb5 {[%clk 0:03:14.7]} 26. d4 {[%clk 0:02:03.7]}
26... Nb4 {[%clk 0:02:52.8]} 27. Bxd6 {[%clk 0:01:50.8]} 27... Qxd6 {[%clk
0:02:51.8]} 28. Rxc7 {[%clk 0:01:45.8]} 28... Qxc7 {[%clk 0:02:51.3]} 29. Qd2
{[%clk 0:01:38.6]} 29... Rb8 {[%clk 0:02:43.6]} 30. Rc1 {[%clk 0:01:36.3]} 30...
Qd7 {[%clk 0:02:43]} 31. Nc5 {[%clk 0:01:28.8]} 31... Qb5 {[%clk 0:02:41.7]} 32.
b3 {[%clk 0:01:20.3]} 32... Nc6 {[%clk 0:02:36.9]} 33. e3 {[%clk 0:01:04.8]}
33... Qb6 {[%clk 0:02:34]} 34. Qc3 {[%clk 0:00:40]} 34... Nb4 {[%clk 0:02:31.4]}
35. Nd7 {[%clk 0:00:35.3]} 35... Nxd7 {[%clk 0:02:29.3]} 0-1

[Event "Live Chess"]
[Site "Chess.com"]
[Date "2024.06.02"]
[Round "-"]
[White "IMcoach"]
[Black "JohanKjeldahl"]
[Result "1-0"]
[WhiteElo "2542"]
[BlackElo "1791"]
[TimeControl "300"]
[EndTime "6:18:00 PDT"]
[Termination "IMcoach won by resignation"]

1. e4 {[%clk 0:04:58]} 1... c5 {[%clk 0:04:58.4]} 2. Nc3 {[%clk 0:04:53.1]} 2...
e6 {[%clk 0:04:57.1]} 3. g3 {[%clk 0:04:52]} 3... Nc6 {[%clk 0:04:55.7]} 4. Bg2
{[%clk 0:04:50.1]} 4... a6 {[%clk 0:04:53.9]} 5. d3 {[%clk 0:04:48.7]} 5... b5
{[%clk 0:04:49.8]} 6. Nh3 {[%clk 0:04:47.9]} 6... Bb7 {[%clk 0:04:47.9]} 7. f4
{[%clk 0:04:46.8]} 7... Nge7 {[%clk 0:04:44.5]} 8. O-O {[%clk 0:04:45.9]} 8...
g6 {[%clk 0:04:43.6]} 9. f5 {[%clk 0:04:42.9]} 9... gxf5 {[%clk 0:04:41.6]} 10.
exf5 {[%clk 0:04:42.8]} 10... Nxf5 {[%clk 0:04:39.2]} 11. g4 {[%clk 0:04:38.2]}
11... Nfd4 {[%clk 0:04:35.4]} 12. Ne4 {[%clk 0:04:34.7]} 12... d5 {[%clk
0:04:19.9]} 13. Nf6+ {[%clk 0:04:32.6]} 13... Ke7 {[%clk 0:04:18.2]} 14. c3
{[%clk 0:04:32.2]} 14... Bg7 {[%clk 0:04:11.8]} 15. Bg5 {[%clk 0:04:27.9]} 15...
h6 {[%clk 0:03:41.5]} 16. Nxd5+ {[%clk 0:04:21.6]} 16... Kd6 {[%clk 0:03:38.6]}
1-0

[Event "Live Chess"]
[Site "Chess.com"]
[Date "2024.06.02"]
[Round "-"]
[White "oscalik"]
[Black "Konovka_Ukraine"]
[Result "1-0"]
[WhiteElo "2240"]
[BlackElo "1768"]
[TimeControl "300"]
[EndTime "6:18:11 PDT"]
[Termination "oscalik won by resignation"]

1. e4 {[%clk 0:04:57.9]} 1... c6 {[%clk 0:04:58.5]} 2. Nc3 {[%clk 0:04:56.6]}
2... d5 {[%clk 0:04:58.4]} 3. Qf3 {[%clk 0:04:55.9]} 3... dxe4 {[%clk
0:04:55.3]} 4. Nxe4 {[%clk 0:04:55.1]} 4... Nd7 {[%clk 0:04:50]} 5. Qe3 {[%clk
0:04:53.9]} 5... e6 {[%clk 0:04:48]} 6. b3 {[%clk 0:04:51.6]} 6... Ngf6 {[%clk
0:04:46.7]} 7. Bb2 {[%clk 0:04:50.5]} 7... Nxe4 {[%clk 0:04:44.3]} 8. Qxe4
{[%clk 0:04:50.4]} 8... Nf6 {[%clk 0:04:41.1]} 9. Qh4 {[%clk 0:04:49.3]} 9...
Be7 {[%clk 0:04:38.6]} 10. O-O-O {[%clk 0:04:47.6]} 10... Qa5 {[%clk 0:04:32.5]}
11. Kb1 {[%clk 0:04:44]} 11... Bd7 {[%clk 0:04:13.3]} 12. Nf3 {[%clk 0:04:40.7]}
12... O-O {[%clk 0:04:07.1]} 13. Ne5 {[%clk 0:04:36.8]} 13... Rad8 {[%clk
0:03:59.1]} 14. Bd3 {[%clk 0:04:34.6]} 14... g6 {[%clk 0:03:26.3]} 15. Nxd7
{[%clk 0:04:26.7]} 15... Rxd7 {[%clk 0:03:26.2]} 16. Bxf6 {[%clk 0:04:24.6]}
16... Bxf6 {[%clk 0:03:23.7]} 17. Qxf6 {[%clk 0:04:23.4]} 17... Rfd8 {[%clk
0:03:16.6]} 18. h4 {[%clk 0:04:20.1]} 18... Rxd3 {[%clk 0:03:14.3]} 19. cxd3
{[%clk 0:04:18.9]} 19... Rxd3 {[%clk 0:03:13.2]} 20. Qb2 {[%clk 0:04:14.8]}
20... Qf5 {[%clk 0:03:09]} 21. Ka1 {[%clk 0:04:09.6]} 21... Qxf2 {[%clk
0:03:06.7]} 22. h5 {[%clk 0:04:05.5]} 1-0

[Event "Live Chess"]
[Site "Chess.com"]
[Date "2024.06.02"]
[Round "-"]
[White "LL220284LL"]
[Black "agamilewska"]
[Result "1-0"]
[WhiteElo "2490"]
[BlackElo "1780"]
[TimeControl "300"]
[EndTime "6:18:21 PDT"]
[Termination "LL220284LL won by resignation"]

1. g3 {[%clk 0:04:58.7]} 1... d5 {[%clk 0:04:58.2]} 2. Bg2 {[%clk 0:04:57.1]}
2... Nf6 {[%clk 0:04:55.1]} 3. Nf3 {[%clk 0:04:56.1]} 3... Nc6 {[%clk
0:04:49.2]} 4. O-O {[%clk 0:04:55.1]} 4... Bg4 {[%clk 0:04:46.8]} 5. b3 {[%clk
0:04:54.3]} 5... Bxf3 {[%clk 0:04:45.9]} 6. Bxf3 {[%clk 0:04:54.2]} 6... e6
{[%clk 0:04:45.2]} 7. Bb2 {[%clk 0:04:53.3]} 7... Bc5 {[%clk 0:04:44.6]} 8. d3
{[%clk 0:04:52.7]} 8... O-O {[%clk 0:04:43]} 9. Nd2 {[%clk 0:04:52.2]} 9... h6
{[%clk 0:04:41.2]} 10. a3 {[%clk 0:04:51.1]} 10... a6 {[%clk 0:04:39.9]} 11. e4
{[%clk 0:04:50.5]} 11... dxe4 {[%clk 0:04:38.6]} 12. Nxe4 {[%clk 0:04:49.1]}
12... Nxe4 {[%clk 0:04:37.5]} 13. Bxe4 {[%clk 0:04:49]} 13... Bd4 {[%clk
0:04:31.7]} 14. Bxd4 {[%clk 0:04:39.5]} 14... Qxd4 {[%clk 0:04:25.5]} 15. Bxc6
{[%clk 0:04:38.3]} 15... bxc6 {[%clk 0:04:24.6]} 16. Re1 {[%clk 0:04:37.8]}
16... Qc3 {[%clk 0:04:16.6]} 17. Rc1 {[%clk 0:04:24.5]} 17... a5 {[%clk
0:04:14.7]} 18. a4 {[%clk 0:04:22.7]} 18... c5 {[%clk 0:04:08.7]} 19. Qg4 {[%clk
0:04:14.6]} 19... Rad8 {[%clk 0:04:03]} 20. Re4 {[%clk 0:04:09.6]} 20... Rd4
{[%clk 0:03:56.1]} 21. Qe2 {[%clk 0:04:05.6]} 21... Rfd8 {[%clk 0:03:49.8]} 22.
Re3 {[%clk 0:04:01]} 22... Qb2 {[%clk 0:03:27.1]} 23. Re1 {[%clk 0:03:54.9]}
23... Qc3 {[%clk 0:03:23.1]} 24. Kf1 {[%clk 0:03:27.9]} 24... c6 {[%clk
0:03:00.6]} 25. Qd1 {[%clk 0:03:25.5]} 25... c4 {[%clk 0:02:37]} 26. bxc4 {[%clk
0:03:23.6]} 26... Rxc4 {[%clk 0:02:29.4]} 27. dxc4 {[%clk 0:03:21.4]} 27...
Qxc4+ {[%clk 0:02:20.8]} 28. Qe2 {[%clk 0:03:19.8]} 1-0

[Event "Live Chess"]
[Site "Chess.com"]
[Date "2024.06.02"]
[Round "-"]
[White "RichardABates"]
[Black "gobbles19"]
[Result "1-0"]
[WhiteElo "2352"]
[BlackElo "2235"]
[TimeControl "300"]
[EndTime "6:18:25 PDT"]
[Termination "RichardABates won by resignation"]

1. d4 {[%clk 0:04:56.3]} 1... Nf6 {[%clk 0:04:58.7]} 2. Nf3 {[%clk 0:04:54.2]}
2... e6 {[%clk 0:04:57.6]} 3. c4 {[%clk 0:04:52.8]} 3... c5 {[%clk 0:04:56.6]}
4. d5 {[%clk 0:04:50.4]} 4... exd5 {[%clk 0:04:55.5]} 5. cxd5 {[%clk 0:04:47.9]}
5... d6 {[%clk 0:04:55.1]} 6. Nc3 {[%clk 0:04:46.7]} 6... g6 {[%clk 0:04:54.6]}
7. h3 {[%clk 0:04:45.2]} 7... Bg7 {[%clk 0:04:53.7]} 8. Bf4 {[%clk 0:04:43.9]}
8... O-O {[%clk 0:04:52.5]} 9. e3 {[%clk 0:04:42.6]} 9... a6 {[%clk 0:04:18.3]}
10. a4 {[%clk 0:04:40.7]} 10... b6 {[%clk 0:04:16.2]} 11. Nd2 {[%clk 0:04:30.8]}
11... Re8 {[%clk 0:04:09.4]} 12. Be2 {[%clk 0:04:28.5]} 12... Bb7 {[%clk
0:04:07]} 13. Nc4 {[%clk 0:04:26.3]} 13... Bf8 {[%clk 0:04:05]} 14. O-O {[%clk
0:04:21.7]} 14... Ne4 {[%clk 0:03:57.3]} 15. Nxe4 {[%clk 0:04:17.4]} 15... Rxe4
{[%clk 0:03:57.2]} 16. Bd3 {[%clk 0:04:05.8]} 16... Rxf4 {[%clk 0:03:43.6]} 17.
exf4 {[%clk 0:04:03.9]} 17... Bxd5 {[%clk 0:03:42.6]} 18. Ne3 {[%clk 0:03:57.4]}
18... Bb7 {[%clk 0:03:39.4]} 19. Bc4 {[%clk 0:03:55]} 19... Nd7 {[%clk
0:03:30.5]} 20. Bd5 {[%clk 0:03:44.8]} 20... Bxd5 {[%clk 0:03:22.6]} 21. Nxd5
{[%clk 0:03:43.3]} 21... Nf6 {[%clk 0:03:19.8]} 22. Re1 {[%clk 0:03:39.1]} 22...
Nxd5 {[%clk 0:03:04.4]} 23. Qxd5 {[%clk 0:03:37.3]} 23... Bg7 {[%clk 0:03:00.4]}
24. Re2 {[%clk 0:03:34.5]} 24... Rb8 {[%clk 0:02:52]} 25. Rae1 {[%clk
0:03:32.5]} 25... Qd7 {[%clk 0:02:49.4]} 26. Re7 {[%clk 0:03:24.5]} 1-0

[Event "Live Chess"]
[Site "Chess.com"]
[Date "2024.06.02"]
[Round "-"]
[White "Dashman93"]
[Black "GEMdzq"]
[Result "0-1"]
[WhiteElo "2120"]
[BlackElo "2300"]
[TimeControl "300"]
[EndTime "6:18:32 PDT"]
[Termination "GEMdzq won by resignation"]

1. d4 {[%clk 0:04:57.8]} 1... Nf6 {[%clk 0:04:58.9]} 2. Nf3 {[%clk 0:04:56.9]}
2... e6 {[%clk 0:04:57.2]} 3. g3 {[%clk 0:04:56.1]} 3... c5 {[%clk 0:04:56.7]}
4. Bg2 {[%clk 0:04:55.4]} 4... d5 {[%clk 0:04:54.3]} 5. O-O {[%clk 0:04:54.1]}
5... cxd4 {[%clk 0:04:53.3]} 6. Nxd4 {[%clk 0:04:53.1]} 6... Be7 {[%clk
0:04:52.2]} 7. c4 {[%clk 0:04:51.9]} 7... e5 {[%clk 0:04:51.2]} 8. Nc2 {[%clk
0:04:50.7]} 8... d4 {[%clk 0:04:50]} 9. e3 {[%clk 0:04:47.9]} 9... Nc6 {[%clk
0:04:48.5]} 10. exd4 {[%clk 0:04:47]} 10... Nxd4 {[%clk 0:04:45.7]} 11. Nxd4
{[%clk 0:04:45.8]} 11... exd4 {[%clk 0:04:44.9]} 12. Qb3 {[%clk 0:04:41]} 12...
O-O {[%clk 0:04:42.8]} 13. Bf4 {[%clk 0:04:38.1]} 13... Nh5 {[%clk 0:04:38.3]}
14. Bd2 {[%clk 0:04:34.6]} 14... Rb8 {[%clk 0:04:33.9]} 15. Na3 {[%clk
0:04:32.6]} 15... a6 {[%clk 0:04:29.2]} 16. Rac1 {[%clk 0:04:29.6]} 16... Be6
{[%clk 0:04:27]} 17. Rfe1 {[%clk 0:04:22.8]} 17... Bc5 {[%clk 0:04:20.2]} 18.
Nc2 {[%clk 0:04:13.7]} 18... b5 {[%clk 0:04:16.6]} 19. Qf3 {[%clk 0:03:56.3]}
19... Nf6 {[%clk 0:04:03.9]} 20. cxb5 {[%clk 0:03:54.3]} 20... Bd5 {[%clk
0:04:02.9]} 21. Qf5 {[%clk 0:03:46.9]} 21... Bxg2 {[%clk 0:04:02.8]} 22. Qxc5
{[%clk 0:03:42.3]} 22... Bh3 {[%clk 0:03:57.4]} 23. Qxd4 {[%clk 0:03:40.2]}
23... Rxb5 {[%clk 0:03:47.1]} 24. Qxd8 {[%clk 0:03:37.9]} 24... Rxd8 {[%clk
0:03:47]} 25. Bc3 {[%clk 0:03:35.6]} 25... Nd5 {[%clk 0:03:45.2]} 26. Rcd1
{[%clk 0:03:28.8]} 26... Rbb8 {[%clk 0:03:41.5]} 27. Ne3 {[%clk 0:03:21.1]}
27... Nxc3 {[%clk 0:03:38.6]} 28. Rxd8+ {[%clk 0:03:19.2]} 28... Rxd8 {[%clk
0:03:38.3]} 29. bxc3 {[%clk 0:03:18.6]} 29... Be6 {[%clk 0:03:36.8]} 30. a3
{[%clk 0:03:14.7]} 30... g6 {[%clk 0:03:33.6]} 31. Rc1 {[%clk 0:03:13]} 31...
Rd2 {[%clk 0:03:31.6]} 32. Kf1 {[%clk 0:03:10.7]} 32... Ra2 {[%clk 0:03:30.1]}
33. c4 {[%clk 0:03:07.4]} 33... Rxa3 {[%clk 0:03:28.9]} 34. c5 {[%clk
0:03:06.7]} 34... Kf8 {[%clk 0:03:26.1]} 35. Ke2 {[%clk 0:03:03.9]} 35... Ke7
{[%clk 0:03:24.7]} 36. c6 {[%clk 0:03:01.7]} 36... Kd8 {[%clk 0:03:21]} 37. Nc4
{[%clk 0:02:52.1]} 37... Ra2+ {[%clk 0:03:15.9]} 38. Ke3 {[%clk 0:02:49.1]}
38... Kc7 {[%clk 0:03:14.5]} 39. Ne5 {[%clk 0:02:44.9]} 39... Ra5 {[%clk
0:03:11]} 40. f4 {[%clk 0:02:43.7]} 40... Ra3+ {[%clk 0:02:31.5]} 41. Kd4 {[%clk
0:02:37.4]} 41... f6 {[%clk 0:02:30.3]} 42. Nd3 {[%clk 0:02:23]} 42... Ra2
{[%clk 0:02:20.3]} 43. Re1 {[%clk 0:02:11.3]} 43... Bf5 {[%clk 0:02:16.4]} 44.
Re7+ {[%clk 0:02:06.3]} 44... Kd6 {[%clk 0:02:14.4]} 45. Re3 {[%clk 0:01:52]}
45... Rd2 {[%clk 0:02:10.6]} 46. c7 {[%clk 0:01:49.2]} 46... Kxc7 {[%clk
0:02:09]} 47. Re7+ {[%clk 0:01:42.2]} 47... Kd6 {[%clk 0:02:07]} 48. Re3 {[%clk
0:01:20.8]} 48... a5 {[%clk 0:01:59.6]} 49. Kc3 {[%clk 0:01:16.7]} 49... Rxd3+
{[%clk 0:01:57.6]} 50. Rxd3+ {[%clk 0:01:16]} 50... Bxd3 {[%clk 0:01:56.7]} 51.
Kxd3 {[%clk 0:01:15.9]} 51... Kd5 {[%clk 0:01:55.9]} 52. Kc3 {[%clk 0:01:15.8]}
52... Ke4 {[%clk 0:01:54.9]} 0-1

[Event "Live Chess"]
[Site "Chess.com"]
[Date "2024.06.02"]
[Round "-"]
[White "nyclone"]
[Black "r0ad_t0-gm"]
[Result "0-1"]
[WhiteElo "1148"]
[BlackElo "2305"]
[TimeControl "300"]
[EndTime "6:18:38 PDT"]
[Termination "r0ad_t0-gm won by resignation"]

1. e4 {[%clk 0:04:57.4]} 1... Nf6 {[%clk 0:04:59.9]} 2. Nc3 {[%clk 0:04:56.5]}
2... d5 {[%clk 0:04:58.5]} 3. exd5 {[%clk 0:04:55.2]} 3... Nxd5 {[%clk
0:04:58.4]} 4. Nxd5 {[%clk 0:04:52.7]} 4... Qxd5 {[%clk 0:04:58.3]} 5. Nf3
{[%clk 0:04:50.9]} 5... Bg4 {[%clk 0:04:57.1]} 6. Be2 {[%clk 0:04:49.5]} 6... e5
{[%clk 0:04:55.4]} 7. b3 {[%clk 0:04:41.9]} 7... Nc6 {[%clk 0:04:53.1]} 8. Bb2
{[%clk 0:04:37.5]} 8... f6 {[%clk 0:04:51.8]} 9. c4 {[%clk 0:04:35.5]} 9... Qd7
{[%clk 0:04:47.4]} 10. O-O {[%clk 0:04:30.7]} 10... O-O-O {[%clk 0:04:45.9]} 11.
d3 {[%clk 0:04:28.3]} 11... Bc5 {[%clk 0:04:42.9]} 12. Ne1 {[%clk 0:04:23]}
12... Bxe2 {[%clk 0:04:41.1]} 13. Qxe2 {[%clk 0:04:22.9]} 13... g5 {[%clk
0:04:38.8]} 14. a4 {[%clk 0:04:20.9]} 14... h5 {[%clk 0:04:36.8]} 15. Ba3 {[%clk
0:04:19.4]} 15... Bxa3 {[%clk 0:04:34.5]} 16. Rxa3 {[%clk 0:04:19.3]} 16... h4
{[%clk 0:04:32]} 17. Nc2 {[%clk 0:04:10.6]} 17... h3 {[%clk 0:04:28.6]} 18. g3
{[%clk 0:04:09.1]} 18... f5 {[%clk 0:04:27.1]} 19. b4 {[%clk 0:04:05]} 19... f4
{[%clk 0:04:24.1]} 20. b5 {[%clk 0:04:00.7]} 20... Nd4 {[%clk 0:04:23.2]} 21.
Nxd4 {[%clk 0:03:59.4]} 21... Qxd4 {[%clk 0:04:12.6]} 22. Qe4 {[%clk 0:03:37.7]}
22... fxg3 {[%clk 0:04:05.2]} 23. hxg3 {[%clk 0:03:34.2]} 23... Qd6 {[%clk
0:03:47.9]} 24. Rfa1 {[%clk 0:03:06.9]} 24... h2+ {[%clk 0:03:44.1]} 25. Kh1
{[%clk 0:03:05.8]} 25... Rdf8 {[%clk 0:03:41.6]} 26. R3a2 {[%clk 0:02:57.7]}
26... Qc5 {[%clk 0:03:23.1]} 27. Qe3 {[%clk 0:02:19.4]} 27... Qxe3 {[%clk
0:03:18.6]} 28. fxe3 {[%clk 0:02:19.3]} 28... Rf3 {[%clk 0:03:17.5]} 29. Rxh2
{[%clk 0:02:11.7]} 29... Rxh2+ {[%clk 0:03:14.5]} 30. Kxh2 {[%clk 0:02:10.8]}
30... Rxe3 {[%clk 0:03:14.4]} 31. Rd1 {[%clk 0:02:08.7]} 31... g4 {[%clk
0:03:12]} 32. Rd2 {[%clk 0:02:04.5]} 32... Kd7 {[%clk 0:03:10.3]} 33. Kg2 {[%clk
0:02:03.7]} 33... Kd6 {[%clk 0:03:09]} 34. Kf2 {[%clk 0:02:03]} 34... Rf3+
{[%clk 0:03:08.1]} 35. Kg2 {[%clk 0:02:01.9]} 35... Kc5 {[%clk 0:03:08]} 36. Re2
{[%clk 0:01:59.5]} 36... Rxd3 {[%clk 0:03:01.9]} 37. Rxe5+ {[%clk 0:01:58.2]}
37... Kxc4 {[%clk 0:03:01.6]} 38. Re4+ {[%clk 0:01:56.7]} 38... Rd4 {[%clk
0:03:01]} 39. Rxd4+ {[%clk 0:01:52.5]} 39... Kxd4 {[%clk 0:03:00]} 40. Kf2
{[%clk 0:01:51.9]} 40... Kd3 {[%clk 0:02:58.6]} 41. a5 {[%clk 0:01:49.6]} 41...
c5 {[%clk 0:02:55.4]} 42. bxc6 {[%clk 0:01:46.4]} 42... bxc6 {[%clk 0:02:54.6]}
43. Ke1 {[%clk 0:01:45]} 43... c5 {[%clk 0:02:54.5]} 44. Kd1 {[%clk 0:01:44.4]}
44... c4 {[%clk 0:02:54.4]} 45. Kc1 {[%clk 0:01:44.1]} 45... c3 {[%clk
0:02:54.3]} 46. Kb1 {[%clk 0:01:43.2]} 46... Kd2 {[%clk 0:02:53.5]} 47. Ka2
{[%clk 0:01:41.8]} 47... c2 {[%clk 0:02:52.8]} 48. Kb3 {[%clk 0:01:41.7]} 48...
c1=Q {[%clk 0:02:51.6]} 49. Kb4 {[%clk 0:01:41.6]} 0-1